Workbook

Sheet Ex.de Sala - 01
B2: Questão 1a
B4: i | C4: x | D4: f(x) | E4: Erro abs
B5: 0 | C5: 1.1 | D5: =SIN(C5)-(1/C5) -> -0.01788354903
B6: 1 | C6: 1.2 | D6: 0.09870575263 | E6: =ABS(C6-C5) -> 0.1
B7: =B6+1 -> 2 | C7: =(C5*D6-C6*D5)/(D6-D5) -> 1.115338928 | D7: 0.00147147529 | E7: =ABS(C7-C6) -> 0.08466107201
B8: =B7+1 -> 3 | C8: =(C6*D7-C7*D6)/(D7-D6) -> 1.114057727 | D8: -0.0001239323809 | E8: 0.001281201227
B9: 4 | C9: =(C7*D8-C8*D7)/(D8-D7) -> 1.114157251 | D9: 1.377382325e-07 | E9: 9.952460513e-05
B10: 5 | C10: =(C8*D9-C9*D8)/(D9-D8) -> 1.114157141 | D10: 1.287181473e-11 | E10: =ABS(C10-C9) -> 1.104886762e-07
B11: 6 | C11: =(C9*D10-C10*D9)/(D10-D9) -> 1.114157141 | D11: 0 | E11: =ABS(C11-C10) -> 1.03264064e-11
